Workbook

Sheet Introduction
A2: Multi Tumor Partition Model (MTPM)
A5: The Multi Tumor Partition Model is a (n+2) compartment partition model, where n is the number of individual tumors.
A6: This method allows to determine:
A8: 1. Mean absorbed dose within the target normal liver by:
A13: 1. Mean absorbed dose within the lungs by:
A18: 3. Mean absorbed dose within each individual tumor by:
B23: TNRi is the tumor to normal liver activity concentration ratio for individual tumors calculated by
A28: For additional information see: V.Morán, E.Prieto, L.Sancho, M.Rodríguez-Fraile, L.Soria, JM Martí-Climent.
A29: Impact of the dosimetry approach on the resulting 90Y radioembolization planned absorbed doses based
A30: on 99mTc-MAA SPECT-CT. Is there agreement between dosimetry methods?" EJNMMI Physics. 2020

Sheet MTPM_calculator
E1: MULTI-TUMOR PARTITION MODEL FOR 90-Y RADIOEMBOLIZATION TREATMENT PLANNING
J2: Spreadsheet Instructions
B4: Verónica Morán, Medical Physics Department, Clinica Universidad de Navarra, Madrid (Spain) vmoran@unav.es | J4: *Brown-shaded cells are prepared to introduce data
J5: *Red-shaded cells are prepared to show results
B6: Lungs Tissue
B8: 90Y Activity GBq | E8: 1.8 | J8: 1. Enter 90Y activity in GBq (E8)
B10: LSF (%) | E10: 4.02 | J10: 2. Enter lung shunt fraction (LSF) in percentage (E10)
B12: Volume (mL) | E12: 1000 | J12: 3. Enter lung tissue volume in mL (E12)
B14: Mean Absorbed Dose (Gy) | E14: =IF(OR(ISBLANK(E12),ISBLANK(E10),ISBLANK(E8)),"",(49.67*E8*(E10/100))/(E12/1000)) -> 3.6 | J14: Mean absorbed dose in Gy delivered to the lung tissue is showed in cell E14
B16: Target Healthy Tissue
B18: Volume (mL) | E18: 2277 | J18: 4. Enter target healtly tissue volume in mL (E18)
B20: Total uptake (counts) | E20: 545888 | J20: 5. Enter total counts registered within target healthy liver volume in 99mTc-MAA SPECT image(E20)
B22: Mean Absorbed Dose (Gy) | E22: =IF(OR(ISBLANK(E8),ISBLANK(E10),ISBLANK(E18),ISBLANK(E28),ISBLANK(E30)),"",(49.67*$E$8*(1-$E$10/100))/($E$28*$E$30+E18))*1000 -> 27.3 | J22: Mean absorbed dose in Gy delivered to the target healthy tissue is showed in cell E22
B24: Individual Tumors
B26: Number of tumors | E26: 50 | J26: 6. Enter number of total individual tumors (E26)
B28: Aggretated tumor volume (mL) | E28: =IF(ISBLANK(D33:D83),"",SUMIF(D33:D83,"<>")) -> 735 | J28: Aggregated tumor volume in mL is calculated in cell E28
B30: Global TNR | E30: =IF(OR(ISBLANK(E28),SUMIF(G33:G82,"<>")=0),"",SUMIF(G33:G82,"<>")/E28) -> 1.2 | J30: Globar tumor to non-tumor uptake ratio is calculated in cell E30
B32: Tumor | C32: Location | D32: Volume (mL) | E32: Total uptake (counts) | F32: TNRi | G32: Weight | H32: Absorbed Dose (Gy) | J32: 7. Enter each individual tumor location (column C) 8. Enter each individual tumor volume in mL (column D) 9. Entertotal count registered within each tumor volume in 99mTc-MAA SPECT image(column E)
B33: 1 | D33: 186 | E33: 46773 | F33: =IF(OR(ISBLANK(E33),ISBLANK(D33),ISBLANK($E$18),ISBLANK($E$20)),"",(E33/D33)/($E$20/$E$18)) -> 1.1 | G33: =IF(OR(ISBLANK(F33),ISBLANK(D33)),"",(F33*D33)) -> 195 | H33: =IF(OR(ISBLANK($E$8),ISBLANK($E$10),ISBLANK($E$18),ISBLANK($E$28),ISBLANK($E$30),ISBLANK(F33)),"",49.67*$E$8*(1-$E$10/100)*F33/($E$28*$E$30+$E$18))*1000 -> 28.6
B34: 2 | D34: 7 | E34: 1926 | F34: =IF(OR(ISBLANK(E34),ISBLANK(D34),ISBLANK($E$18),ISBLANK($E$20)),"",(E34/D34)/($E$20/$E$18)) -> 1.2 | G34: =IF(OR(ISBLANK(F34),ISBLANK(D34)),"",(F34*D34)) -> 8 | H34: =IF(OR(ISBLANK($E$8),ISBLANK($E$10),ISBLANK($E$18),ISBLANK($E$28),ISBLANK($E$30),ISBLANK(F34)),"",49.67*$E$8*(1-$E$10/100)*F34/($E$28*$E$30+$E$18))*1000 -> 33.1
B35: 3 | D35: 11 | E35: 4813 | F35: 1.8 | G35: 20 | H35: 48.2
B36: 4 | D36: 9 | E36: 2984 | F36: 1.3 | G36: 12 | H36: 35.8 | J36: Individual tumor to non-tumor uptake ration is calculated in column F
B37: 5 | D37: 17 | E37: 4594 | F37: 1.1 | G37: =IF(OR(ISBLANK(F37),ISBLANK(D37)),"",(F37*D37)) -> 19 | H37: 30.8
B38: 6 | D38: 5 | E38: 971 | F38: 0.9 | G38: 4 | H38: 24.4 | J38: Mean absorbed dose in Gy delivered to each individual tumor is showed in column H
B39: 7 | D39: 6 | E39: 1482 | F39: 1.0 | G39: 6 | H39: 27.3
B40: 8 | D40: 11 | E40: 3682 | F40: 1.4 | G40: 15 | H40: 38.0
B41: 9 | D41: 86 | E41: 24346 | F41: 1.2 | G41: 102 | H41: 32.0
B42: 10 | D42: 14 | E42: 1151 | F42: 0.4 | G42: 5 | H42: =IF(OR(ISBLANK($E$8),ISBLANK($E$10),ISBLANK($E$18),ISBLANK($E$28),ISBLANK($E$30),ISBLANK(F42)),"",49.67*$E$8*(1-$E$10/100)*F42/($E$28*$E$30+$E$18))*1000 -> 9.6
B43: 11 | D43: 9 | E43: 3044 | F43: 1.3 | G43: 13 | H43: 36.5
B44: 12 | D44: 39 | E44: 9275 | F44: 1.0 | G44: 39 | H44: 27.2
B45: 13 | D45: 30 | E45: 9162 | F45: 1.3 | G45: 38 | H45: 34.5
B46: 14 | D46: 130 | E46: 34348 | F46: 1.1 | G46: 143 | H46: 30.0
B47: 15 | D47: 3 | E47: 815 | F47: 1.1 | G47: 3 | H47: 30.0
B48: 16 | D48: 1 | E48: 497 | F48: 1.7 | G48: 2 | H48: 46.6
B49: 17 | D49: 1 | E49: 161 | F49: 1.2 | G49: 1 | H49: 33.2
B50: 18 | D50: 2 | E50: 572 | F50: 1.5 | G50: 2 | H50: 42.1
B51: 19 | D51: 1 | E51: 202 | F51: 0.6 | G51: 1 | H51: 17.4
B52: 20 | D52: 15 | E52: 5612 | F52: 1.5 | G52: 23 | H52: 41.9
B53: 21 | D53: 8 | E53: 2011 | F53: 1.1 | G53: 8 | H53: 29.2
B54: 22 | D54: 12 | E54: 6482 | F54: 2.3 | G54: 27 | H54: 63.7
B55: 23 | D55: 1 | E55: 89 | F55: 0.4 | G55: 0 | H55: 11.4
B56: 24 | D56: 2 | E56: 578 | F56: 1.4 | G56: 2 | H56: 37.2
B57: 25 | D57: 2 | E57: 997 | F57: 2.4 | G57: 4 | H57: 64.3
B58: 26 | D58: 7 | E58: 2947 | F58: 1.7 | G58: 12 | H58: 45.4
B59: 27 | D59: 10 | E59: 4953 | F59: 2.0 | G59: 21 | H59: 55.5
B60: 28 | D60: 5 | E60: 1252 | F60: 1.0 | G60: 5 | H60: 26.9
B61: 29 | D61: 6 | E61: 285 | F61: 0.2 | G61: 1 | H61: 5.4
B62: 30 | D62: 2 | E62: 354 | F62: 0.9 | G62: 1 | H62: 24.3
B63: 31 | D63: 2 | E63: 476 | F63: 1.0 | G63: 2 | H63: 27.3
B64: 32 | D64: 2 | E64: 216 | F64: 0.4 | G64: 1 | H64: 11.1
B65: 33 | D65: 4 | E65: 797 | F65: 0.8 | G65: 3 | H65: 22.2
B66: 34 | D66: 1 | E66: 299 | F66: 1.0 | G66: 1 | H66: 28.1
B67: 35 | D67: 10 | E67: 3465 | F67: 1.4 | G67: 14 | H67: 39.3
B68: 36 | D68: 2 | E68: 730 | F68: 1.3 | G68: 3 | H68: 35.9
B69: 37 | D69: 1 | E69: 86 | F69: 0.5 | G69: 0 | H69: 14.7
B70: 38 | D70: 4 | E70: 1112 | F70: 1.3 | G70: 5 | H70: 35.8
B71: 39 | D71: 4 | E71: 929 | F71: 1.0 | G71: 4 | H71: 26.6
B72: 40 | D72: 4 | E72: 280 | F72: 0.3 | G72: 1 | H72: 7.8
B73: 41 | D73: 3 | E73: 690 | F73: 0.9 | G73: 3 | H73: 25.4
B74: 42 | D74: 1 | E74: 51 | F74: 0.2 | G74: 0 | H74: 6.6
B75: 43 | D75: 5 | E75: 1553 | F75: 1.4 | G75: 6 | H75: 37.2
B76: 44 | D76: 9 | E76: 4676 | F76: 2.2 | G76: 20 | H76: 61.0
B77: 45 | D77: 14 | E77: 6005 | F77: 1.8 | G77: 25 | H77: 50.0
B78: 46 | D78: 13 | E78: 4487 | F78: 1.4 | G78: 19 | H78: 38.6
B79: 47 | D79: 8 | E79: 2201 | F79: 1.2 | G79: 9 | H79: 32.0
B80: 48 | D80: 4 | E80: 1859 | F80: 2.1 | G80: 8 | H80: 56.4
B81: 49 | D81: 4 | E81: 1751 | F81: 1.8 | G81: 7 | H81: 50.2
B82: 50 | D82: 3 | E82: 664 | F82: 0.9 | G82: 3 | H82: 23.6
F98: =IF(OR(ISBLANK(E98),ISBLANK(D98),ISBLANK($E$18),ISBLANK($E$20)),"",(E98/D98)/($E$20/$E$18)) -> 
F101: =IF(OR(ISBLANK(E101),ISBLANK(D101),ISBLANK($E$18),ISBLANK($E$20)),"",(E101/D101)/($E$20/$E$18)) ->  | G101: =IF(OR(ISBLANK(F101),ISBLANK(D101)),"",(F101*D101)) -> 
